[Event "December 5 Early 2023"]
[Site "https://www.chess.com"]
[Date "2023.12.05"]
[Round "3"]
[White "Narva, Mai"]
[Black "Gruzman, Ilya"]
[Result "0-1"]
[Board "155"]
[TimeControl "180+1"]
[WhiteFideId "4500512"]
[BlackFideId "2812703"]
[WhiteElo "2568"]
[BlackElo "2307"]
[WhiteTeam "EST"]
[BlackTeam "ISR"]
[WhiteClock "0:00:03"]
[BlackClock "0:00:28"]

1. e4 {[%clk 0:03:00]}  c5 {[%clk 0:02:59]} 2. Nf3 {[%clk 0:03:00]}  e6 {[%clk 0:03:00]} 3. d4 {[%clk 0:03:00]}  cxd4 {[%clk 0:03:00]} 4. Nxd4 {[%clk 0:03:01]}  Nf6 {[%clk 0:03:01]} 5. Nc3 {[%clk 0:03:01]}  Nc6 {[%clk 0:03:01]} 6. Ndb5 {[%clk 0:03:02]}  Bb4 {[%clk 0:03:01]} 7. a3 {[%clk 0:03:01]}  Bxc3+ {[%clk 0:03:01]} 8. Nxc3 {[%clk 0:03:02]}  d5 {[%clk 0:03:02]} 9. exd5 {[%clk 0:02:59]}  exd5 {[%clk 0:03:03]} 10. Bd3 {[%clk 0:03:00]}  O-O {[%clk 0:03:03]} 11. O-O {[%clk 0:02:59]}  d4 {[%clk 0:03:03]} 12. Ne2 {[%clk 0:03:00]}  Bg4 {[%clk 0:03:04]} 13. h3 {[%clk 0:03:00]}  Bh5 {[%clk 0:03:04]} 14. f4 {[%clk 0:03:00]}  Bxe2 {[%clk 0:03:01]} 15. Qxe2 {[%clk 0:02:58]}  Re8 {[%clk 0:03:00]} 16. Qf3 {[%clk 0:02:57]}  Qd7 {[%clk 0:02:56]} 17. Bd2 {[%clk 0:02:57]}  Re7 {[%clk 0:02:55]} 18. b4 {[%clk 0:02:57]}  Rae8 {[%clk 0:02:48]} 19. b5 {[%clk 0:02:57]}  Nd8 {[%clk 0:02:49]} 20. a4 {[%clk 0:02:51]}  Nd5 {[%clk 0:02:43]} 21. f5 {[%clk 0:02:46]}  Kh8 {[%clk 0:02:15]} 22. a5 {[%clk 0:02:34]}  f6 {[%clk 0:02:13]} 23. Ra4 {[%clk 0:01:49]}  Ne3 {[%clk 0:02:09]} 24. Rf2 {[%clk 0:01:46]}  Nf7 {[%clk 0:02:09]} 25. Qf4 {[%clk 0:01:40]}  Ng5 {[%clk 0:01:50]} 26. Rxd4 {[%clk 0:01:18]}  Qc8 {[%clk 0:01:45]} 27. Re2 {[%clk 0:00:54]}  Nxg2 {[%clk 0:01:17]} 28. Qg4 {[%clk 0:00:40]}  Rxe2 {[%clk 0:00:54]} 29. Bxe2 {[%clk 0:00:41]}  Ne3 {[%clk 0:00:48]} 30. Bxe3 {[%clk 0:00:18]}  Rxe3 {[%clk 0:00:49]} 31. Kf2 {[%clk 0:00:11]}  Re7 {[%clk 0:00:46]} 32. h4 {[%clk 0:00:09]}  Nf7 {[%clk 0:00:46]} 33. Qg3 {[%clk 0:00:08]}  h6 {[%clk 0:00:43]} 34. Qd3 {[%clk 0:00:06]}  Ne5 {[%clk 0:00:42]} 35. Qe4 {[%clk 0:00:06]}  Nc6 {[%clk 0:00:38]} 36. Qd5 {[%clk 0:00:02]}  Nxd4 {[%clk 0:00:37]} 37. Qxd4 {[%clk 0:00:03]}  Qxf5+ {[%clk 0:00:37]} 38. Bf3 {[%clk 0:00:03]}  Qxc2+ {[%clk 0:00:36]} 39. Kg3 {[%clk 0:00:03]}  Qg6+ {[%clk 0:00:36]} 40. Kf2 {[%clk 0:00:04]}  Re8 {[%clk 0:00:31]} 41. h5 {[%clk 0:00:04]}  Qc2+ {[%clk 0:00:31]} 42. Kg3 {[%clk 0:00:05]}  Qc7+ {[%clk 0:00:31]} 43. Kf2 {[%clk 0:00:04]}  Qe5 {[%clk 0:00:31]} 44. Qxa7 {[%clk 0:00:04]}  Qxb5 {[%clk 0:00:30]} 45. Qxb7 {[%clk 0:00:03]}  Qxa5 {[%clk 0:00:28]} 46. Qf7 {[%clk 0:00:02]}  Qd2+ {[%clk 0:00:27]} 47. Kg3 {[%clk 0:00:03]}  Qd6+ {[%clk 0:00:26]} 48. Kf2 {[%clk 0:00:03]}  Qe6 {[%clk 0:00:26]} 49. Qg6 {[%clk 0:00:03]}  Qe3+ {[%clk 0:00:26]} 50. Kg2 {[%clk 0:00:03]}  Qg5+ {[%clk 0:00:27]} 51. Qxg5 {[%clk 0:00:03]}  hxg5 {[%clk 0:00:28]} 52. Kg3 {[%clk 0:00:04]}  Kh7 {[%clk 0:00:28]} 53. Kg4 {[%clk 0:00:05]}  Kh6 {[%clk 0:00:28]} 54. Bd5 {[%clk 0:00:04]}  Re5 {[%clk 0:00:28]} 55. Bf7 {[%clk 0:00:03]}  f5+ {[%clk 0:00:28]} 0-1

[Event "December 5 Early 2023"]
[Site "https://www.chess.com"]
[Date "2023.12.05"]
[Round "3"]
[White "Glidzhain, Gor"]
[Black "Antonio, Jorge Carlos"]
[Result "1-0"]
[Board "156"]
[TimeControl "180+1"]
[WhiteFideId "24109932"]
[BlackFideId "113190"]
[WhiteElo "2567"]
[BlackElo "2302"]
[WhiteTeam "RUS"]
[BlackTeam "ARG"]
[WhiteClock "0:00:18"]
[BlackClock "0:01:03"]

1. e4 {[%clk 0:03:00]}  c5 {[%clk 0:02:59]} 2. d4 {[%clk 0:02:59]}  cxd4 {[%clk 0:02:58]} 3. c3 {[%clk 0:02:57]}  d5 {[%clk 0:02:55]} 4. exd5 {[%clk 0:02:54]}  Qxd5 {[%clk 0:02:53]} 5. cxd4 {[%clk 0:02:47]}  Nc6 {[%clk 0:02:52]} 6. Be3 {[%clk 0:02:46]}  Nf6 {[%clk 0:02:51]} 7. Nc3 {[%clk 0:02:35]}  Qa5 {[%clk 0:02:46]} 8. d5 {[%clk 0:02:25]}  Ne5 {[%clk 0:02:42]} 9. Bd4 {[%clk 0:02:19]}  Ng6 {[%clk 0:02:36]} 10. Bxf6 {[%clk 0:02:15]}  exf6 {[%clk 0:02:33]} 11. Bb5+ {[%clk 0:02:13]}  Bd7 {[%clk 0:02:32]} 12. Bxd7+ {[%clk 0:02:13]}  Kxd7 {[%clk 0:02:32]} 13. Ne2 {[%clk 0:02:12]}  Bd6 {[%clk 0:02:27]} 14. O-O {[%clk 0:02:08]}  Rhe8 {[%clk 0:02:27]} 15. Rb1 {[%clk 0:02:04]}  Ke7 {[%clk 0:02:27]} 16. b4 {[%clk 0:02:03]}  Qd8 {[%clk 0:02:18]} 17. Ne4 {[%clk 0:01:24]}  Kf8 {[%clk 0:02:17]} 18. Nc5 {[%clk 0:01:20]}  b6 {[%clk 0:02:13]} 19. Nb7 {[%clk 0:01:20]}  Qd7 {[%clk 0:02:12]} 20. Nxd6 {[%clk 0:01:20]}  Qxd6 {[%clk 0:02:12]} 21. Nc3 {[%clk 0:01:19]}  Rac8 {[%clk 0:02:07]} 22. Nb5 {[%clk 0:01:17]}  Qd7 {[%clk 0:02:04]} 23. Qa4 {[%clk 0:00:52]}  Qxd5 {[%clk 0:01:53]} 24. Rbd1 {[%clk 0:00:45]}  Qg5 {[%clk 0:01:47]} 25. Nd6 {[%clk 0:00:35]}  Nh4 {[%clk 0:01:39]} 26. g3 {[%clk 0:00:31]}  b5 {[%clk 0:01:13]} 27. Qxa7 {[%clk 0:00:18]}  Re7 {[%clk 0:01:04]} 28. Nxc8 {[%clk 0:00:18]}  Rxa7 {[%clk 0:01:03]} 29. Rd8# {[%clk 0:00:18]} 1-0

[Event "December 5 Early 2023"]
[Site "https://www.chess.com"]
[Date "2023.12.05"]
[Round "3"]
[White "Viana Da Costa, Fernando"]
[Black "Sarkar, Justin"]
[Result "1-0"]
[Board "157"]
[TimeControl "180+1"]
[WhiteFideId "2111900"]
[BlackFideId "2010011"]
[WhiteElo "2567"]
[BlackElo "2294"]
[WhiteTeam "BRA"]
[BlackTeam "USA"]
[WhiteClock "0:00:49"]
[BlackClock "0:00:00"]

1. e4 {[%clk 0:02:01]}  c5 {[%clk 0:02:57]} 2. Nf3 {[%clk 0:02:01]}  Nc6 {[%clk 0:02:57]} 3. d4 {[%clk 0:01:58]}  cxd4 {[%clk 0:02:55]} 4. Nxd4 {[%clk 0:01:59]}  g6 {[%clk 0:02:53]} 5. Nc3 {[%clk 0:01:57]}  Bg7 {[%clk 0:02:52]} 6. Be3 {[%clk 0:01:58]}  Nf6 {[%clk 0:02:51]} 7. Bc4 {[%clk 0:01:58]}  Qa5 {[%clk 0:02:44]} 8. O-O {[%clk 0:01:58]}  O-O {[%clk 0:02:44]} 9. Bb3 {[%clk 0:01:58]}  d6 {[%clk 0:02:43]} 10. h3 {[%clk 0:01:51]}  Bd7 {[%clk 0:02:39]} 11. Re1 {[%clk 0:01:47]}  Nxd4 {[%clk 0:02:34]} 12. Bxd4 {[%clk 0:01:48]}  Bc6 {[%clk 0:02:33]} 13. Nd5 {[%clk 0:01:46]}  Bxd5 {[%clk 0:01:59]} 14. exd5 {[%clk 0:01:47]}  Rfe8 {[%clk 0:01:58]} 15. c3 {[%clk 0:01:42]}  Nd7 {[%clk 0:01:55]} 16. Bxg7 {[%clk 0:01:41]}  Kxg7 {[%clk 0:01:54]} 17. Qd4+ {[%clk 0:01:42]}  Kg8 {[%clk 0:01:52]} 18. Re3 {[%clk 0:01:42]}  Qb6 {[%clk 0:01:13]} 19. Qh4 {[%clk 0:01:32]}  Nc5 {[%clk 0:00:53]} 20. c4 {[%clk 0:01:29]}  Nxb3 {[%clk 0:00:46]} 21. axb3 {[%clk 0:01:30]}  e5 {[%clk 0:00:25]} 22. dxe6 {[%clk 0:01:28]}  Rxe6 {[%clk 0:00:24]} 23. Rxe6 {[%clk 0:01:24]}  fxe6 {[%clk 0:00:24]} 24. Qe7 {[%clk 0:01:25]}  d5 {[%clk 0:00:15]} 25. c5 {[%clk 0:01:22]}  Qc6 {[%clk 0:00:13]} 26. Re1 {[%clk 0:01:21]}  Re8 {[%clk 0:00:13]} 27. Qd6 {[%clk 0:01:15]}  Qxd6 {[%clk 0:00:09]} 28. cxd6 {[%clk 0:01:16]}  Kf7 {[%clk 0:00:09]} 29. Rc1 {[%clk 0:01:17]}  Kf6 {[%clk 0:00:05]} 30. Rc7 {[%clk 0:01:17]}  Rd8 {[%clk 0:00:03]} 31. Rxb7 {[%clk 0:01:15]}  Rxd6 {[%clk 0:00:03]} 32. Rxa7 {[%clk 0:01:15]}  Rb6 {[%clk 0:00:02]} 33. Ra3 {[%clk 0:01:08]}  d4 {[%clk 0:00:02]} 34. Kf1 {[%clk 0:01:08]}  e5 {[%clk 0:00:03]} 35. f3 {[%clk 0:01:08]}  h5 {[%clk 0:00:03]} 36. Ke2 {[%clk 0:01:08]}  Kf5 {[%clk 0:00:03]} 37. g3 {[%clk 0:01:03]}  Rb5 {[%clk 0:00:02]} 38. Kd3 {[%clk 0:01:03]}  Rb4 {[%clk 0:00:02]} 39. Kc2 {[%clk 0:01:02]}  g5 {[%clk 0:00:02]} 40. Ra8 {[%clk 0:01:02]}  h4 {[%clk 0:00:02]} 41. Rf8+ {[%clk 0:01:00]}  Ke6 {[%clk 0:00:01]} 42. gxh4 {[%clk 0:01:01]}  gxh4 {[%clk 0:00:01]} 43. Rh8 {[%clk 0:01:01]}  Rb7 {[%clk 0:00:01]} 44. Rxh4 {[%clk 0:00:59]}  Rf7 {[%clk 0:00:01]} 45. b4 {[%clk 0:00:54]}  Rxf3 {[%clk 0:00:01]} 46. b5 {[%clk 0:00:55]}  Kd5 {[%clk 0:00:01]} 47. Rh6 {[%clk 0:00:54]}  e4 {[%clk 0:00:01]} 48. b6 {[%clk 0:00:54]}  Rf2+ {[%clk 0:00:01]} 49. Kb3 {[%clk 0:00:53]}  e3 {[%clk 0:00:02]} 50. b7 {[%clk 0:00:53]}  Rf8 {[%clk 0:00:02]} 51. Kc2 {[%clk 0:00:50]}  Ke4 {[%clk 0:00:01]} 52. Re6+ {[%clk 0:00:49]}  Kf3 {[%clk 0:00:01]} 53. Rf6+ {[%clk 0:00:49]}  Rxf6 {[%clk 0:00:01]} 54. b8=Q {[%clk 0:00:50]}  Rf4 {[%clk 0:00:00]} 55. Kd3 {[%clk 0:00:49]} 1-0

[Event "December 5 Early 2023"]
[Site "https://www.chess.com"]
[Date "2023.12.05"]
[Round "3"]
[White "Stankovic, Boris"]
[Black "Deveci, Huseyin Said"]
[Result "1-0"]
[Board "159"]
[TimeControl "180+1"]
[WhiteFideId "985317"]
[BlackFideId "26322455"]
[WhiteElo "2562"]
[BlackElo "2256"]
[WhiteTeam "SRB"]
[BlackTeam "TUR"]
[WhiteClock "0:00:17"]
[BlackClock "0:00:17"]

1. f4 {[%clk 0:03:00]}  g6 {[%clk 0:02:57]} 2. g3 {[%clk 0:03:00]}  Bg7 {[%clk 0:02:58]} 3. Bg2 {[%clk 0:03:01]}  c6 {[%clk 0:02:58]} 4. e4 {[%clk 0:03:01]}  d5 {[%clk 0:02:58]} 5. e5 {[%clk 0:03:01]}  e6 {[%clk 0:02:59]} 6. d3 {[%clk 0:02:54]}  c5 {[%clk 0:02:59]} 7. Nc3 {[%clk 0:02:53]}  Nc6 {[%clk 0:03:00]} 8. Nf3 {[%clk 0:02:50]}  Nge7 {[%clk 0:02:59]} 9. O-O {[%clk 0:02:50]}  h5 {[%clk 0:02:59]} 10. Kh1 {[%clk 0:02:50]}  Nf5 {[%clk 0:02:59]} 11. Ng5 {[%clk 0:02:32]}  b6 {[%clk 0:02:56]} 12. a4 {[%clk 0:01:58]}  Bb7 {[%clk 0:02:55]} 13. Bd2 {[%clk 0:01:56]}  Qe7 {[%clk 0:02:33]} 14. Ne2 {[%clk 0:01:54]}  O-O-O {[%clk 0:02:30]} 15. a5 {[%clk 0:01:51]}  Bh6 {[%clk 0:02:21]} 16. axb6 {[%clk 0:01:43]}  axb6 {[%clk 0:02:22]} 17. Nc3 {[%clk 0:01:41]}  Bxg5 {[%clk 0:02:21]} 18. fxg5 {[%clk 0:01:42]}  c4 {[%clk 0:01:59]} 19. Nb5 {[%clk 0:01:40]}  h4 {[%clk 0:01:57]} 20. g4 {[%clk 0:01:38]}  Ng3+ {[%clk 0:01:56]} 21. Kg1 {[%clk 0:01:19]}  Nxf1 {[%clk 0:01:53]} 22. Nd6+ {[%clk 0:01:15]}  Rxd6 {[%clk 0:01:53]} 23. exd6 {[%clk 0:01:16]}  Qxd6 {[%clk 0:01:54]} 24. Qxf1 {[%clk 0:01:15]}  h3 {[%clk 0:01:48]} 25. Bf3 {[%clk 0:01:13]}  Nd4 {[%clk 0:01:40]} 26. Bc3 {[%clk 0:01:11]}  Qf4 {[%clk 0:01:36]} 27. Bd1 {[%clk 0:01:00]}  Qe3+ {[%clk 0:00:47]} 28. Qf2 {[%clk 0:00:52]}  Qxf2+ {[%clk 0:00:47]} 29. Kxf2 {[%clk 0:00:53]}  e5 {[%clk 0:00:48]} 30. Ra4 {[%clk 0:00:32]}  b5 {[%clk 0:00:44]} 31. Rb4 {[%clk 0:00:29]}  Bc6 {[%clk 0:00:41]} 32. b3 {[%clk 0:00:23]}  cxb3 {[%clk 0:00:32]} 33. cxb3 {[%clk 0:00:24]}  Ne6 {[%clk 0:00:20]} 34. Bxe5 {[%clk 0:00:24]}  Re8 {[%clk 0:00:21]} 35. Bf6 {[%clk 0:00:21]}  Nc5 {[%clk 0:00:21]} 36. Be2 {[%clk 0:00:18]}  Kd7 {[%clk 0:00:19]} 37. Rf4 {[%clk 0:00:18]}  Ne6 {[%clk 0:00:18]} 38. Rf3 {[%clk 0:00:17]}  Nd4 {[%clk 0:00:17]} 39. Bxd4 {[%clk 0:00:17]} 1-0

[Event "December 5 Early 2023"]
[Site "https://www.chess.com"]
[Date "2023.12.05"]
[Round "3"]
[White "Rogov, Matfey"]
[Black "Borawski, Jakub"]
[Result "0-1"]
[Board "162"]
[TimeControl "180+1"]
[WhiteFideId "44191308"]
[BlackFideId "1143000"]
[WhiteElo "2559"]
[BlackElo "2227"]
[WhiteTeam "RUS"]
[BlackTeam "POL"]
[WhiteClock "0:00:00"]
[BlackClock "0:00:18"]

1. e4 {[%clk 0:03:00]}  e5 {[%clk 0:02:59]} 2. Nf3 {[%clk 0:03:00]}  Nc6 {[%clk 0:03:00]} 3. c3 {[%clk 0:03:01]}  Nf6 {[%clk 0:02:59]} 4. d4 {[%clk 0:03:00]}  exd4 {[%clk 0:02:57]} 5. e5 {[%clk 0:03:01]}  Nd5 {[%clk 0:02:57]} 6. Qb3 {[%clk 0:03:02]}  Nb6 {[%clk 0:02:50]} 7. cxd4 {[%clk 0:03:02]}  d5 {[%clk 0:02:50]} 8. Bd3 {[%clk 0:02:59]}  Bb4+ {[%clk 0:02:46]} 9. Nc3 {[%clk 0:02:58]}  O-O {[%clk 0:02:44]} 10. h3 {[%clk 0:02:52]}  f5 {[%clk 0:02:38]} 11. O-O {[%clk 0:02:43]}  f4 {[%clk 0:02:31]} 12. Bd2 {[%clk 0:02:21]}  Bxc3 {[%clk 0:02:30]} 13. Qxc3 {[%clk 0:02:12]}  a5 {[%clk 0:02:16]} 14. Rac1 {[%clk 0:02:08]}  Be6 {[%clk 0:02:16]} 15. Bb5 {[%clk 0:02:07]}  Bd7 {[%clk 0:01:53]} 16. Rfe1 {[%clk 0:01:42]}  Qc8 {[%clk 0:01:13]} 17. Bxc6 {[%clk 0:01:27]}  bxc6 {[%clk 0:01:11]} 18. Qc5 {[%clk 0:01:07]}  Bxh3 {[%clk 0:00:44]} 19. gxh3 {[%clk 0:00:35]}  Qxh3 {[%clk 0:00:43]} 20. Nh2 {[%clk 0:00:29]}  f3 {[%clk 0:00:32]} 21. Nxf3 {[%clk 0:00:29]}  Rxf3 {[%clk 0:00:31]} 22. Rc3 {[%clk 0:00:06]}  Qg4+ {[%clk 0:00:26]} 23. Kf1 {[%clk 0:00:05]}  Raf8 {[%clk 0:00:18]} 24. Rxf3 {[%clk 0:00:04]}  Qxf3 {[%clk 0:00:18]} 25. Be3 {[%clk 0:00:00]}  Nc4 {[%clk 0:00:18]} 0-1

[Event "December 5 Early 2023"]
[Site "https://www.chess.com"]
[Date "2023.12.05"]
[Round "3"]
[White "Mishra, Manoj"]
[Black "Teterev, Vitaly"]
[Result "0-1"]
[Board "163"]
[TimeControl "180+1"]
[WhiteFideId "5006007"]
[BlackFideId "13501429"]
[WhiteElo "2222"]
[BlackElo "2559"]
[WhiteTeam "IND"]
[BlackTeam "BLR"]
[WhiteClock "0:00:22"]
[BlackClock "0:01:21"]

1. d4 {[%clk 0:03:00]}  Nf6 {[%clk 0:02:51]} 2. Bf4 {[%clk 0:02:58]}  c5 {[%clk 0:02:50]} 3. d5 {[%clk 0:02:58]}  d6 {[%clk 0:02:47]} 4. Nc3 {[%clk 0:02:55]}  a6 {[%clk 0:02:46]} 5. a4 {[%clk 0:02:54]}  e5 {[%clk 0:02:44]} 6. dxe6 {[%clk 0:02:53]}  Bxe6 {[%clk 0:02:45]} 7. e4 {[%clk 0:02:52]}  Nc6 {[%clk 0:02:45]} 8. Nf3 {[%clk 0:02:47]}  Be7 {[%clk 0:02:45]} 9. h3 {[%clk 0:02:18]}  O-O {[%clk 0:02:36]} 10. Bd3 {[%clk 0:02:17]}  d5 {[%clk 0:02:30]} 11. e5 {[%clk 0:02:13]}  Nd7 {[%clk 0:02:25]} 12. h4 {[%clk 0:02:12]}  c4 {[%clk 0:02:15]} 13. Bxh7+ {[%clk 0:02:03]}  Kxh7 {[%clk 0:02:15]} 14. Ng5+ {[%clk 0:02:03]}  Kg8 {[%clk 0:02:16]} 15. Qh5 {[%clk 0:02:00]}  Bf5 {[%clk 0:02:15]} 16. Nxd5 {[%clk 0:01:53]}  Bg6 {[%clk 0:02:02]} 17. Qe2 {[%clk 0:01:34]}  Ndxe5 {[%clk 0:01:55]} 18. O-O-O {[%clk 0:01:19]}  Nd3+ {[%clk 0:01:40]} 19. cxd3 {[%clk 0:00:58]}  Qxd5 {[%clk 0:01:36]} 20. dxc4 {[%clk 0:00:54]}  Qf5 {[%clk 0:01:36]} 21. Rd5 {[%clk 0:00:27]}  Qb1+ {[%clk 0:01:33]} 22. Kd2 {[%clk 0:00:28]}  Bb4+ {[%clk 0:01:30]} 23. Ke3 {[%clk 0:00:22]}  Qxh1 {[%clk 0:01:21]} 0-1

[Event "December 5 Early 2023"]
[Site "https://www.chess.com"]
[Date "2023.12.05"]
[Round "3"]
[White "Durucay, Uygar"]
[Black "Chemin, Justo Reinaldo"]
[Result "1-0"]
[Board "164"]
[TimeControl "180+1"]
[WhiteFideId "44591560"]
[BlackFideId "2101580"]
[WhiteElo "2555"]
[BlackElo "2221"]
[WhiteTeam "TUR"]
[BlackTeam "BRA"]
[WhiteClock "0:01:18"]
[BlackClock "0:00:00"]

1. d4 {[%clk 0:02:58]}  d5 {[%clk 0:02:58]} 2. c4 {[%clk 0:02:58]}  dxc4 {[%clk 0:02:58]} 3. e3 {[%clk 0:02:58]}  e6 {[%clk 0:02:58]} 4. Bxc4 {[%clk 0:02:56]}  a6 {[%clk 0:02:58]} 5. Nf3 {[%clk 0:02:56]}  b5 {[%clk 0:02:57]} 6. Be2 {[%clk 0:02:53]}  Bb7 {[%clk 0:02:56]} 7. O-O {[%clk 0:02:53]}  Nf6 {[%clk 0:02:55]} 8. a4 {[%clk 0:02:49]}  b4 {[%clk 0:02:47]} 9. b3 {[%clk 0:02:49]}  Nbd7 {[%clk 0:02:43]} 10. Bb2 {[%clk 0:02:49]}  Be7 {[%clk 0:02:41]} 11. Nbd2 {[%clk 0:02:48]}  O-O {[%clk 0:02:40]} 12. Nc4 {[%clk 0:02:45]}  a5 {[%clk 0:02:38]} 13. Nfe5 {[%clk 0:02:43]}  Nxe5 {[%clk 0:02:36]} 14. Nxe5 {[%clk 0:02:43]}  Nd5 {[%clk 0:02:19]} 15. Rc1 {[%clk 0:02:41]}  Qe8 {[%clk 0:02:04]} 16. Bb5 {[%clk 0:02:38]}  Qd8 {[%clk 0:01:59]} 17. Nd7 {[%clk 0:02:38]}  c6 {[%clk 0:01:52]} 18. Bxc6 {[%clk 0:02:19]}  Bxc6 {[%clk 0:01:51]} 19. Nxf8 {[%clk 0:02:19]}  Rc8 {[%clk 0:01:35]} 20. Nxe6 {[%clk 0:02:16]}  fxe6 {[%clk 0:01:34]} 21. Qg4 {[%clk 0:02:16]}  Qd7 {[%clk 0:01:28]} 22. Rc2 {[%clk 0:02:06]}  Nf6 {[%clk 0:01:26]} 23. Qe2 {[%clk 0:02:03]}  Qd5 {[%clk 0:01:21]} 24. f3 {[%clk 0:02:01]}  Qxb3 {[%clk 0:01:20]} 25. Rfc1 {[%clk 0:02:01]}  Qxa4 {[%clk 0:01:10]} 26. Qa6 {[%clk 0:02:00]}  Rc7 {[%clk 0:00:37]} 27. Rxc6 {[%clk 0:01:59]}  Rxc6 {[%clk 0:00:37]} 28. Qxc6 {[%clk 0:01:52]}  Qxc6 {[%clk 0:00:36]} 29. Rxc6 {[%clk 0:01:53]}  a4 {[%clk 0:00:36]} 30. Rxe6 {[%clk 0:01:49]}  Kf7 {[%clk 0:00:34]} 31. Ra6 {[%clk 0:01:43]}  a3 {[%clk 0:00:34]} 32. Bc1 {[%clk 0:01:43]}  Nd5 {[%clk 0:00:33]} 33. e4 {[%clk 0:01:40]}  Nc3 {[%clk 0:00:33]} 34. Kf2 {[%clk 0:01:38]}  Nd1+ {[%clk 0:00:22]} 35. Ke2 {[%clk 0:01:35]}  Nc3+ {[%clk 0:00:19]} 36. Kd3 {[%clk 0:01:34]}  a2 {[%clk 0:00:15]} 37. Bb2 {[%clk 0:01:32]}  Nd1 {[%clk 0:00:12]} 38. Kc2 {[%clk 0:01:25]}  Ne3+ {[%clk 0:00:10]} 39. Kb3 {[%clk 0:01:24]}  Nxg2 {[%clk 0:00:10]} 40. Rxa2 {[%clk 0:01:23]}  Ne1 {[%clk 0:00:10]} 41. d5 {[%clk 0:01:20]}  Nxf3 {[%clk 0:00:10]} 42. Ra7 {[%clk 0:01:20]}  Nxh2 {[%clk 0:00:07]} 43. d6 {[%clk 0:01:20]}  Ke8 {[%clk 0:00:06]} 44. Rxe7+ {[%clk 0:01:19]}  Kd8 {[%clk 0:00:05]} 45. Rxg7 {[%clk 0:01:19]}  Nf3 {[%clk 0:00:04]} 46. e5 {[%clk 0:01:19]}  Nxe5 {[%clk 0:00:03]} 47. Bxe5 {[%clk 0:01:19]}  h5 {[%clk 0:00:00]} 48. Bf6+ {[%clk 0:01:18]} 1-0

[Event "December 5 Early 2023"]
[Site "https://www.chess.com"]
[Date "2023.12.05"]
[Round "3"]
[White "Waldhausen Gordon, Frederick"]
[Black "Palmer, Reegan"]
[Result "0-1"]
[Board "166"]
[TimeControl "180+1"]
[WhiteFideId "2409143"]
[BlackFideId "14322145"]
[WhiteElo "2552"]
[BlackElo "2215"]
[WhiteTeam "SCO"]
[BlackTeam "RSA"]
[WhiteClock "0:01:02"]
[BlackClock "0:00:21"]

1. Nf3 {[%clk 0:03:00]}  c5 {[%clk 0:02:58]} 2. e4 {[%clk 0:03:00]}  d6 {[%clk 0:02:55]} 3. Bb5+ {[%clk 0:02:59]}  Nd7 {[%clk 0:02:55]} 4. c3 {[%clk 0:02:59]}  Nf6 {[%clk 0:02:48]} 5. Bd3 {[%clk 0:02:59]}  g6 {[%clk 0:02:47]} 6. O-O {[%clk 0:02:59]}  Bg7 {[%clk 0:02:48]} 7. Bc2 {[%clk 0:02:59]}  O-O {[%clk 0:02:48]} 8. d4 {[%clk 0:02:57]}  cxd4 {[%clk 0:02:33]} 9. cxd4 {[%clk 0:02:58]}  e5 {[%clk 0:02:34]} 10. d5 {[%clk 0:02:58]}  Nh5 {[%clk 0:02:31]} 11. a4 {[%clk 0:02:56]}  Qe8 {[%clk 0:02:20]} 12. Nc3 {[%clk 0:02:51]}  a6 {[%clk 0:02:18]} 13. Nh4 {[%clk 0:02:44]}  Qe7 {[%clk 0:02:03]} 14. g3 {[%clk 0:02:41]}  Ndf6 {[%clk 0:01:45]} 15. f3 {[%clk 0:02:34]}  Bh3 {[%clk 0:01:44]} 16. Rf2 {[%clk 0:02:32]}  Nd7 {[%clk 0:01:36]} 17. Bd3 {[%clk 0:02:27]}  f5 {[%clk 0:01:33]} 18. Bf1 {[%clk 0:02:26]}  Bxf1 {[%clk 0:01:28]} 19. Qxf1 {[%clk 0:02:25]}  f4 {[%clk 0:01:28]} 20. Qg2 {[%clk 0:02:24]}  Nc5 {[%clk 0:01:22]} 21. Rf1 {[%clk 0:02:17]}  Rac8 {[%clk 0:01:18]} 22. Qh3 {[%clk 0:02:12]}  Bf6 {[%clk 0:01:10]} 23. Ng2 {[%clk 0:02:05]}  Nd3 {[%clk 0:01:03]} 24. g4 {[%clk 0:02:00]}  Ng7 {[%clk 0:00:59]} 25. Ne1 {[%clk 0:02:00]}  Nc5 {[%clk 0:00:49]} 26. Qg2 {[%clk 0:01:55]}  h5 {[%clk 0:00:47]} 27. gxh5 {[%clk 0:01:46]}  gxh5 {[%clk 0:00:41]} 28. Qe2 {[%clk 0:01:44]}  Kh7 {[%clk 0:00:37]} 29. Nd3 {[%clk 0:01:43]}  Nb3 {[%clk 0:00:36]} 30. Ra3 {[%clk 0:01:42]}  Nd4 {[%clk 0:00:35]} 31. Qg2 {[%clk 0:01:32]}  Rg8 {[%clk 0:00:35]} 32. Kh1 {[%clk 0:01:31]}  Ngf5 {[%clk 0:00:34]} 33. Qh3 {[%clk 0:01:28]}  Nh4 {[%clk 0:00:28]} 34. Bd2 {[%clk 0:01:22]}  Rg2 {[%clk 0:00:27]} 35. Be1 {[%clk 0:01:09]}  Rcg8 {[%clk 0:00:21]} 36. Bxh4 {[%clk 0:01:07]}  Bxh4 {[%clk 0:00:22]} 37. Qf5+ {[%clk 0:01:02]}  Nxf5 {[%clk 0:00:21]} 0-1

[Event "December 5 Early 2023"]
[Site "https://www.chess.com"]
[Date "2023.12.05"]
[Round "3"]
[White "Travadon, Loic"]
[Black "Mejia, Giovanni"]
[Result "0-1"]
[Board "170"]
[TimeControl "180+1"]
[WhiteFideId "26092131"]
[BlackFideId "5209498"]
[WhiteElo "2166"]
[BlackElo "2545"]
[WhiteTeam "FRA"]
[BlackTeam "PHI"]
[WhiteClock "0:01:53"]
[BlackClock "0:01:29"]

1. e4 {[%clk 0:03:00]}  c5 {[%clk 0:02:59]} 2. Nf3 {[%clk 0:02:58]}  Nc6 {[%clk 0:02:59]} 3. Nc3 {[%clk 0:02:57]}  Nf6 {[%clk 0:02:59]} 4. Bb5 {[%clk 0:02:56]}  g6 {[%clk 0:02:59]} 5. e5 {[%clk 0:02:55]}  Ng4 {[%clk 0:02:58]} 6. Qe2 {[%clk 0:02:50]}  Bg7 {[%clk 0:02:58]} 7. Bxc6 {[%clk 0:02:48]}  dxc6 {[%clk 0:02:59]} 8. h3 {[%clk 0:02:48]}  Nh6 {[%clk 0:02:58]} 9. O-O {[%clk 0:02:43]}  Nf5 {[%clk 0:02:57]} 10. Ne4 {[%clk 0:02:39]}  b6 {[%clk 0:02:57]} 11. c3 {[%clk 0:02:38]}  O-O {[%clk 0:02:41]} 12. g4 {[%clk 0:02:38]}  Nh6 {[%clk 0:02:42]} 13. d4 {[%clk 0:02:38]}  cxd4 {[%clk 0:02:37]} 14. cxd4 {[%clk 0:02:38]}  f5 {[%clk 0:02:37]} 15. Bxh6 {[%clk 0:02:22]}  fxe4 {[%clk 0:01:49]} 16. Qc4+ {[%clk 0:02:19]}  Qd5 {[%clk 0:01:44]} 17. Qxd5+ {[%clk 0:02:13]}  cxd5 {[%clk 0:01:44]} 18. Bxg7 {[%clk 0:02:11]}  Rxf3 {[%clk 0:01:44]} 19. Bh6 {[%clk 0:02:08]}  Rxh3 {[%clk 0:01:44]} 20. g5 {[%clk 0:01:56]}  Bg4 {[%clk 0:01:32]} 21. Rac1 {[%clk 0:01:53]}  Bf3 {[%clk 0:01:29]} 0-1